bitfinex-derivatives/quotes_BTCF0:USTF0_20250506
["timestamp","ask_amount","ask_price","bid_price","bid_amount"]
[1746530231049,0.3824993,94029.0,94019.0,0.06604]
[1746530231248,0.3824993,94029.0,94028.0,0.2127322]
[1746530232457,0.74311071,94029.0,94028.0,0.2127322]
[1746530232957,0.74311071,94029.0,94028.0,0.2764322]
[1746530236561,0.71211071,94029.0,94028.0,0.2764322]
[1746530237058,0.76529691,94029.0,94028.0,0.2127322]
[1746530237260,0.79859691,94029.0,94028.0,0.2127322]
[1746530238261,0.4379855,94029.0,94028.0,0.2127322]
[1746530240554,0.4379855,94029.0,94028.0,0.2442322]
[1746530255984,0.4379855,94029.0,94028.0,0.2127322]
[1746530266391,0.3847993,94029.0,94028.0,0.2127322]
[1746530292209,0.0657,94029.0,94028.0,0.2127322]
[1746530292717,0.0657,94029.0,94028.0,0.2751322]
[1746530296708,0.3608,94052.0,94028.0,0.2751322]
[1746530296709,0.0531706,94051.0,94050.0,0.2126824]
[1746530296918,0.0861706,94051.0,94050.0,0.2126824]
[1746530298019,0.362753,94051.0,94050.0,0.2126824]
[1746530298217,0.362753,94051.0,94050.0,0.2233386]
[1746530299516,0.0969,94051.0,94050.0,0.2233386]
[1746530299723,0.0969,94051.0,94050.0,0.2548386]
[1746530300121,0.0969,94051.0,94050.0,0.2872386]
[1746530303220,0.1703,94064.0,94050.0,0.2872386]
[1746530303221,0.1703,94084.0,94055.0,0.2126734]
[1746530303517,0.033,94058.0,94055.0,0.2885134]
[1746530303723,0.033,94058.0,94055.0,0.3948334]
[1746530304123,0.033,94058.0,94055.0,0.4574334]
[1746530304324,0.0305,94064.0,94055.0,0.4574334]
[1746530304627,0.0328,94063.0,94055.0,1.9574334]
[1746530304820,0.0328,94063.0,94062.0,0.2126576]
[1746530305123,0.0629,94072.0,94064.0,0.212653]
[1746530305425,0.0328,94071.0,94064.0,0.242653]
[1746530305627,0.0328,94071.0,94064.0,0.348965]
[1746530305825,0.0328,94071.0,94064.0,0.411565]
[1746530307024,0.0328,94071.0,94064.0,0.305253]
[1746530312832,0.0314,94070.0,94064.0,0.305253]
[1746530313033,0.0314,94070.0,94064.0,0.666053]
[1746530313931,0.0314,94070.0,94064.0,0.634953]
[1746530316633,0.0314,94070.0,94069.0,0.2126417]
[1746530316828,0.0328,94071.0,94070.0,0.2126395]
[1746530317023,0.0328,94071.0,94070.0,0.3621435]
[1746530317225,0.0328,94071.0,94070.0,0.3936435]
[1746530317425,0.0328,94071.0,94070.0,1.8936435]
[1746530318527,0.0328,94071.0,94070.0,2.3936435]
[1746530318720,0.0326,94084.0,94083.0,0.2126101]
[1746530318929,0.0631,94084.0,94083.0,0.2783301]
[1746530319232,0.0631,94084.0,94083.0,0.28904238]
[1746530324233,0.0631,94084.0,94083.0,1.78904238]
[1746530324434,0.0631,94084.0,94083.0,1.72332238]
[1746530324635,0.0631,94084.0,94083.0,1.78904238]
[1746530326031,0.0631,94084.0,94083.0,1.89533038]
[1746530326233,0.0631,94084.0,94083.0,1.90533038]
[1746530327139,0.0631,94084.0,94083.0,2.40533038]
[1746530332132,0.0631,94084.0,94083.0,2.33961038]
[1746530332334,0.0631,94084.0,94083.0,2.29904238]
[1746530336240,0.0631,94084.0,94083.0,2.22332238]
[1746530336430,0.0631,94084.0,94083.0,2.28892238]
[1746530336637,0.0631,94084.0,94083.0,2.2782101]
[1746530337037,0.0631,94084.0,94083.0,2.28877905]
[1746530337235,0.0631,94084.0,94083.0,1.78877905]
[1746530337542,0.0631,94084.0,94083.0,1.7782101]
[1746530337743,0.2757078,94084.0,94083.0,1.7782101]
[1746530338042,0.0631,94084.0,94083.0,1.7782101]
[1746530338349,0.2757078,94084.0,94083.0,1.7782101]
[1746530339551,0.0631,94084.0,94083.0,0.2782101]
[1746530340446,0.2757078,94084.0,94083.0,0.2782101]
[1746530340755,0.3070078,94084.0,94083.0,0.2782101]
[1746530341242,0.3070078,94084.0,94083.0,0.2126101]
[1746530341956,0.2126124,94082.0,94081.0,0.573413]
[1746530342146,0.0944,94084.0,94072.0,0.2126271]
[1746530342147,0.2657976,94073.0,94072.0,0.2126271]
[1746530342353,0.2657976,94073.0,94072.0,0.2782671]
[1746530342650,0.2771302,94075.0,94074.0,0.2126282]
[1746530343554,0.212635,94072.0,94071.0,0.2782767]
[1746530343752,0.0531595,94071.0,94062.0,0.21533819]
[1746530343950,0.2126553,94064.0,94063.0,0.2782866]
[1746530344151,0.2126553,94064.0,94063.0,0.2283866]
[1746530344553,0.0618,94065.0,94064.0,0.212653]
[1746530345656,0.0618,94065.0,94064.0,0.222653]
[1746530346852,0.0618,94065.0,94064.0,0.212653]
[1746530347160,0.0618,94065.0,94064.0,0.222653]
[1746530348051,0.2744508,94065.0,94064.0,0.222653]
[1746530348259,0.2744508,94065.0,94064.0,0.212653]
[1746530349660,0.0618,94065.0,94064.0,0.212653]
[1746530350453,0.2744508,94065.0,94064.0,0.212653]
[1746530351360,0.0618,94065.0,94064.0,0.212653]
[1746530351760,0.2744508,94065.0,94064.0,0.212653]
[1746530351950,0.0618,94065.0,94064.0,0.212653]
[1746530352449,0.2744508,94065.0,94064.0,0.212653]
[1746530353651,0.212653,94064.0,94063.0,0.06564]
[1746530353851,0.212653,94064.0,94063.0,0.2782953]
[1746530354159,0.276953,94064.0,94063.0,0.2782953]
[1746530358652,0.276953,94064.0,94063.0,0.06564]
[1746530359254,0.276953,94064.0,94063.0,0.2782953]
[1746530359854,0.276953,94064.0,94063.0,1.7782953]
[1746530361658,0.307353,94064.0,94063.0,1.7782953]
[1746530362164,0.307353,94064.0,94063.0,0.2782953]
[1746530362664,0.307353,94064.0,94063.0,0.06564]
[1746530362863,0.307353,94064.0,94059.0,0.01594]
[1746530362864,0.2126621,94060.0,94059.0,0.01594]
[1746530363266,0.2658468,94055.0,94054.0,0.0531688]
[1746530363664,0.3297468,94055.0,94054.0,0.2658444]
[1746530364366,0.3297468,94055.0,94054.0,0.2126756]
[1746530367067,0.2126779,94053.0,94052.0,0.2126784]
[1746530367667,0.2771779,94053.0,94052.0,0.2126784]
[1746530373270,0.3271779,94053.0,94052.0,0.2126784]
[1746530396483,0.1145,94053.0,94052.0,0.2126784]
[1746530396685,0.0645,94053.0,94052.0,0.2326784]
[1746530396886,0.2771779,94053.0,94052.0,0.2627784]
[1746530397985,0.2771779,94053.0,94052.0,0.2326784]
[1746530399686,0.2771779,94053.0,94052.0,0.2126784]
[1746530404685,0.2871779,94053.0,94052.0,0.2126784]
[1746530419191,0.0745,94053.0,94052.0,0.2126784]
[1746530419596,0.2871779,94053.0,94052.0,0.2126784]
[1746530421703,0.0745,94053.0,94052.0,0.2126784]
[1746530421899,0.0645,94053.0,94052.0,0.3041784]
[1746530422101,0.0645,94053.0,94052.0,0.3346784]
[1746530422300,0.0645,94053.0,94052.0,0.3661784]
[1746530429711,0.0317,94053.0,94052.0,0.3661784]
[1746530430306,0.0317,94053.0,94052.0,0.3659784]
[1746530430504,0.0309,94060.0,94059.0,0.2126643]
[1746530430710,0.0309,94060.0,94059.0,0.2426643]
[1746530431211,0.0309,94060.0,94059.0,1.7426643]
[1746530431709,0.0309,94060.0,94059.0,1.7741643]
[1746530440720,0.0309,94060.0,94059.0,1.7426643]
[1746530441218,0.0309,94060.0,94059.0,1.7741643]
[1746530442420,0.0309,94060.0,94059.0,1.7126643]
[1746530443015,0.0609,94060.0,94059.0,1.7126643]
[1746530447224,0.0309,94060.0,94059.0,1.7126643]
[1746530448627,0.0309,94060.0,94059.0,0.2126643]
[1746530452314,0.2740621,94060.0,94059.0,0.2126643]
[1746530453123,0.0614,94060.0,94059.0,0.2126643]
[1746530453827,0.2740621,94060.0,94059.0,0.2126643]
[1746530454029,0.0614,94060.0,94059.0,0.2126643]
[1746530454540,0.2740621,94060.0,94059.0,0.2126643]
[1746530455933,0.0614,94060.0,94059.0,0.2126643]
[1746530456229,0.2740621,94060.0,94059.0,0.2126643]
[1746530456426,0.0614,94060.0,94059.0,0.2126643]
[1746530457032,0.0934,94060.0,94059.0,0.2126643]
[1746530457622,0.3060621,94060.0,94059.0,0.2126643]
[1746530457824,0.0934,94060.0,94059.0,0.2126643]
[1746530459732,0.1434,94060.0,94059.0,0.2126643]
[1746530459923,0.3560621,94060.0,94059.0,0.2126643]
[1746530465836,0.1434,94060.0,94059.0,0.2126643]
[1746530466837,0.3560621,94060.0,94059.0,0.2126643]
[1746530467822,0.3560621,94060.0,94058.0,0.0654]
[1746530468028,0.2126711,94056.0,94055.0,0.01594]
[1746530468228,0.2626711,94056.0,94055.0,0.2286134]
[1746530468537,0.2626711,94056.0,94055.0,0.2126734]
[1746530468737,0.3275711,94056.0,94055.0,0.2126734]
[1746530474739,0.0649,94056.0,94055.0,0.2226734]
[1746530474939,0.0333,94056.0,94055.0,0.2226734]
[1746530475335,0.0333,94056.0,94055.0,0.2846734]
[1746530475834,0.0306,94072.0,94061.0,0.0531644]
[1746530476143,0.7460545,94090.0,94064.0,0.573453]
[1746530476144,0.03,94071.0,94064.0,0.573453]
[1746530476436,0.03,94071.0,94064.0,0.633453]
[1746530477141,0.03,94071.0,94064.0,2.133453]
[1746530477533,0.03,94070.0,94064.0,2.133453]
[1746530477733,0.03,94070.0,94069.0,0.2126417]
[1746530477941,0.03,94070.0,94069.0,0.2326417]
[1746530478533,0.03,94070.0,94069.0,0.2965417]
[1746530478936,0.03,94070.0,94069.0,0.6573417]
[1746530482743,0.3618,94086.0,94085.0,0.2126056]
[1746530483647,0.3718,94086.0,94085.0,0.2126056]
[1746530484048,0.4035,94086.0,94085.0,0.2126056]
[1746530484956,0.3935,94086.0,94085.0,0.2126056]
[1746530490663,0.4135,94086.0,94085.0,0.2126056]
[1746530493364,0.4135,94086.0,94085.0,0.2778456]
[1746530493964,0.3935,94086.0,94085.0,0.2778456]
[1746530496464,0.0327,94086.0,94085.0,0.2778456]
[1746530515881,0.0651,94086.0,94085.0,0.2126056]
[1746530516082,0.0651,94086.0,94085.0,0.2778456]
[1746530527589,0.0531525,94084.0,94081.0,0.01594]
[1746530527893,0.2745124,94083.0,94082.0,0.2657649]
[1746530528088,0.2745124,94083.0,94082.0,0.25330127]
[1746530534787,0.2745124,94083.0,94082.0,0.2126124]
[1746530534982,0.2126237,94077.0,94076.0,0.01594]
[1746530535192,0.2126508,94065.0,94064.0,0.00159469]
[1746530535396,0.5734508,94065.0,94064.0,0.21424769]
[1746530536395,0.6041508,94065.0,94064.0,0.21424769]
[1746530538795,0.6365508,94065.0,94064.0,0.21424769]
[1746530539799,0.6365508,94065.0,94064.0,0.00159469]
[1746530540192,0.8145508,94065.0,94064.0,0.00159469]
[1746530540895,0.9848508,94065.0,94064.0,0.00159469]
[1746530546194,0.8068508,94065.0,94064.0,0.00159469]
[1746530546796,0.2126689,94057.0,94056.0,0.01594]
[1746530547000,0.3608,94057.0,94050.0,0.2126843]
[1746530547195,0.212687,94049.0,94048.0,0.2126869]
[1746530548200,0.274287,94049.0,94048.0,0.2126869]
[1746530549707,0.2126892,94048.0,94047.0,0.00159494]
[1746530549897,0.2126892,94048.0,94047.0,0.21428474]
[1746530550097,0.2742892,94048.0,94047.0,0.21428474]
[1746530551307,0.2742892,94048.0,94047.0,0.24688474]
[1746530554102,0.3608,94072.0,94047.0,0.56532294]
[1746530554408,0.06512,94081.0,94059.0,0.053166]
[1746530554409,0.0531576,94074.0,94059.0,0.053166]
[1746530554707,0.212643,94073.0,94072.0,0.2126327]
[1746530554906,0.277643,94073.0,94072.0,0.2126327]
[1746530555106,0.277643,94073.0,94072.0,0.2450327]
[1746530555308,0.277643,94073.0,94072.0,0.2766327]
[1746530556610,0.065,94073.0,94072.0,0.2766327]
[1746530556803,0.0329,94073.0,94072.0,0.2766327]
[1746530557206,0.00159513,94076.0,94075.0,0.2126282]
[1746530557911,0.001,94086.0,94085.0,0.2126056]
[1746530558303,0.2136033,94086.0,94085.0,0.2126056]
[1746530558498,0.001,94086.0,94085.0,0.2126056]
[1746530558710,0.001,94086.0,94085.0,0.2436056]
[1746530558899,0.2136033,94086.0,94085.0,0.2436056]
[1746530559104,0.001,94086.0,94085.0,0.2436056]
[1746530561414,0.001,94086.0,94085.0,0.2126056]
[1746530561910,0.001,94086.0,94085.0,0.2431056]
[1746530562809,0.001,94086.0,94085.0,0.3493936]
[1746530563110,0.001,94086.0,94085.0,0.6393936]
[1746530563320,0.001,94086.0,94085.0,1.8893936]
[1746530563513,0.001,94086.0,94085.0,1.89720026]
[1746530573623,0.001,94086.0,94085.0,1.92980026]
[1746530575917,0.001,94086.0,94085.0,1.79301226]
[1746530576419,0.001,94086.0,94085.0,1.75301226]
[1746530578524,0.001,94086.0,94085.0,1.72041226]
[1746530578724,0.001,94086.0,94085.0,1.78553226]
[1746530584330,0.001,94086.0,94085.0,1.79553226]
[1746530587632,0.001,94086.0,94085.0,1.78553226]
[1746530588323,0.001,94086.0,94085.0,1.78549226]
[1746530591331,0.001,94086.0,94085.0,2.14629226]
[1746530592829,0.001,94086.0,94081.0,0.01594]
[1746530592830,0.2126124,94082.0,94081.0,0.01594]
[1746530593129,0.2126417,94069.0,94054.0,0.0531683]
[1746530593323,0.2126463,94067.0,94062.0,0.21680911]
[1746530593728,0.2126553,94063.0,94062.0,0.21680911]
[1746530593918,0.0642,94068.0,94067.0,0.2126463]
[1746530594121,0.0642,94068.0,94062.0,0.21680911]
[1746530594122,0.2126553,94063.0,94062.0,0.21680911]
[1746530594323,0.0309,94068.0,94067.0,0.2126463]
[1746530594532,0.243544,94068.0,94067.0,0.2126463]
[1746530595932,0.0309,94068.0,94067.0,0.2126463]
[1746530596134,0.0621,94068.0,94067.0,0.2126463]
[1746530596630,0.0621,94068.0,94067.0,0.2777263]
[1746530596837,0.0948,94068.0,94067.0,0.2777263]
[1746530597632,0.1703,94098.0,94067.0,0.532188]
[1746530597831,0.0531458,94095.0,94085.0,0.5734056]
[1746530598032,0.2125957,94090.0,94085.0,0.5734056]
[1746530598232,0.0531487,94090.0,94085.0,0.5734056]
[1746530598833,0.2136033,94086.0,94085.0,0.3608]
[1746530599032,0.2126101,94083.0,94082.0,1.7776924]
[1746530599639,0.2786078,94084.0,94083.0,0.2126101]
[1746530599933,0.2126101,94083.0,94082.0,1.5]
[1746530600441,0.2454101,94083.0,94082.0,1.5]
[1746530600625,0.2126146,94081.0,94080.0,0.2126151]
[1746530600826,0.2126259,94076.0,94075.0,0.2657781]
[1746530601030,0.2126259,94076.0,94075.0,0.3189348]
[1746530602239,0.2126259,94076.0,94075.0,1.8189348]
[1746530602739,0.0328,94077.0,94076.0,0.2126259]
[1746530602931,0.2454237,94077.0,94076.0,0.2126259]
[1746530605338,0.0328,94077.0,94076.0,0.2126259]
[1746530605740,0.2454237,94077.0,94076.0,0.2126259]
[1746530606340,0.2657959,94073.0,94072.0,0.2126288]
[1746530606537,0.2126372,94071.0,94070.0,0.06508]
[1746530606738,0.2126372,94071.0,94070.0,0.2777195]
[1746530606944,0.5734372,94071.0,94070.0,0.06508]
[1746530607142,0.6057372,94071.0,94070.0,0.2777195]
[1746530607347,0.6057372,94071.0,94070.0,0.06508]
[1746530607545,0.2126508,94065.0,94064.0,0.2126517]
[1746530608141,0.2126553,94063.0,94062.0,0.00159472]
[1746530608350,0.5734553,94063.0,94062.0,0.00159472]
[1746530608746,0.5734553,94063.0,94062.0,0.21425232]
[1746530609158,0.7514553,94063.0,94062.0,0.21425232]
[1746530611460,0.8014553,94063.0,94062.0,0.21425232]
[1746530612756,0.9717553,94063.0,94062.0,0.21425232]
[1746530614154,1.0047553,94063.0,94062.0,0.21425232]
[1746530614963,1.0047553,94063.0,94062.0,0.00159472]
[1746530616162,0.8267553,94063.0,94062.0,0.00159472]
[1746530616758,0.2126892,94048.0,94034.0,0.0648]
[1746530616963,0.6234892,94048.0,94047.0,0.21428644]
[1746530617653,0.6858892,94048.0,94047.0,0.21428644]
[1746530620167,0.6858892,94048.0,94047.0,0.00159494]
[1746530620667,0.7922172,94048.0,94047.0,0.00159494]
[1746530620868,0.8922172,94048.0,94047.0,0.00159494]
[1746530621168,1.2405172,94048.0,94047.0,0.00159494]
[1746530625661,1.2405172,94048.0,94047.0,4e-08]
[1746530627171,0.2127299,94030.0,94029.0,0.00159513]
[1746530627370,0.9843299,94030.0,94029.0,0.00159513]
[1746530627972,1.0468299,94030.0,94029.0,0.00159513]
[1746530628866,1.2171299,94030.0,94029.0,0.00159513]
[1746530630273,1.3234779,94030.0,94029.0,0.00159513]
[1746530631267,0.212739,94026.0,94020.0,0.0304]
[1746530631473,0.433039,94026.0,94020.0,0.0304]
[1746530631670,0.539395,94026.0,94020.0,0.0304]
[1746530634177,0.433039,94026.0,94020.0,0.0304]
[1746530634376,0.433039,94026.0,94015.0,0.2127634]
[1746530634675,0.433039,94026.0,94016.0,0.2430609]
[1746530635770,0.465439,94026.0,94016.0,0.2430609]
[1746530636770,0.465439,94026.0,94017.0,0.2127593]
[1746530636968,0.465439,94026.0,94019.0,0.2127548]
[1746530637167,0.465439,94026.0,94020.0,0.0313]
[1746530640676,0.465439,94026.0,94021.0,0.0531875]
[1746530640867,0.465439,94026.0,94024.0,0.2127428]
[1746530641068,0.465439,94026.0,94025.0,0.03266354]
[1746530643766,0.465439,94026.0,94025.0,0.00106354]
[1746530650387,0.565439,94026.0,94025.0,0.00106354]
[1746530651375,0.465439,94026.0,94025.0,0.00106354]
[1746530652386,0.465439,94026.0,94025.0,0.21380474]
[1746530652885,0.465439,94026.0,94025.0,0.00106354]
[1746530653071,0.465439,94026.0,94025.0,0.24710474]
[1746530653570,0.433039,94026.0,94025.0,0.24710474]
[1746530653779,0.433039,94026.0,94025.0,0.28020474]
[1746530660688,0.262739,94026.0,94025.0,0.28020474]
[1746530661888,0.262739,94026.0,94025.0,0.24710474]
[1746530670896,0.326539,94026.0,94025.0,0.24710474]
[1746530678197,0.326539,94026.0,94025.0,0.00106354]
[1746530678800,0.496839,94026.0,94025.0,0.00106354]
[1746530679193,0.596839,94026.0,94025.0,0.00106354]
[1746530681499,0.596839,94026.0,93995.0,0.36186388]
[1746530681500,0.3608,94021.0,93995.0,1e-08]
[1746530681693,0.5736069,93996.0,93995.0,1e-08]
[1746530681895,0.6236069,93996.0,93995.0,1e-08]
[1746530682600,0.6899069,93996.0,93995.0,1e-08]
[1746530683301,0.69769393,93996.0,93995.0,1e-08]
[1746530685307,0.6899069,93996.0,93995.0,1e-08]
[1746530687703,0.8602069,93996.0,93995.0,1e-08]
[1746530693506,0.7939069,93996.0,93995.0,1e-08]
[1746530694095,0.7939069,93996.0,93995.0,0.27470911]
[1746530695411,0.7939069,93996.0,93995.0,0.06190001]
[1746530696711,0.6236069,93996.0,93995.0,0.06190001]
[1746530697808,0.6314182,93996.0,93995.0,0.06190001]
[1746530699114,0.6314182,93996.0,93995.0,0.03150001]
[1746530699310,0.6619182,93996.0,93995.0,0.03150001]
[1746530700006,0.6619182,93996.0,93995.0,1e-08]
[1746530701316,0.6119182,93996.0,93995.0,1e-08]
[1746530702823,0.7822182,93996.0,93995.0,1e-08]
[1746530708823,0.8322182,93996.0,93995.0,1e-08]
[1746530709025,0.7822182,93996.0,93995.0,1e-08]
[1746530710424,0.8137182,93996.0,93995.0,1e-08]
[1746530716816,1.0701062,93996.0,93995.0,1e-08]
[1746530717321,0.2128748,93966.0,93963.0,0.06512]
[1746530717520,0.5736748,93966.0,93963.0,0.09712]
[1746530717723,0.5736748,93966.0,93963.0,0.032]
[1746530717924,0.5736748,93966.0,93956.0,1.71680911]
[1746530718114,0.5736748,93966.0,93957.0,0.032]
[1746530718521,0.6058748,93966.0,93956.0,0.21680911]
[1746530718819,0.6058748,93966.0,93965.0,2e-08]
[1746530718820,0.8261748,93966.0,93965.0,2e-08]
[1746530719016,0.7761748,93966.0,93965.0,2e-08]
[1746530720734,0.8261748,93966.0,93965.0,2e-08]
[1746530721927,0.7761748,93966.0,93965.0,2e-08]
[1746530722315,0.8761748,93966.0,93965.0,2e-08]
[1746530723932,0.9261748,93966.0,93965.0,2e-08]
[1746530724232,0.8261748,93966.0,93965.0,2e-08]
[1746530728825,0.7761748,93966.0,93965.0,2e-08]
[1746530738423,0.8761748,93966.0,93965.0,2e-08]
[1746530738624,0.7761748,93966.0,93965.0,2e-08]
[1746530739425,0.8761748,93966.0,93965.0,2e-08]
[1746530739734,0.9261748,93966.0,93965.0,2e-08]
[1746530746232,0.92597303,93966.0,93965.0,2e-08]
[1746530747336,0.97597303,93966.0,93965.0,2e-08]
[1746530748137,0.92597303,93966.0,93965.0,2e-08]
[1746530753333,0.97597303,93966.0,93965.0,2e-08]
[1746530758040,1.08239703,93966.0,93965.0,2e-08]
[1746530760343,0.97597303,93966.0,93965.0,2e-08]
[1746530763049,1.33677303,93966.0,93965.0,2e-08]
[1746530764443,1.23677303,93966.0,93965.0,2e-08]
[1746530764642,1.18677303,93966.0,93965.0,2e-08]
[1746530766249,1.35189303,93966.0,93965.0,2e-08]
[1746530768554,1.28677303,93966.0,93965.0,2e-08]
[1746530768753,1.10457303,93966.0,93965.0,2e-08]
[1746530768954,1.10457303,93966.0,93965.0,0.21287712]
[1746530769149,1.10457303,93966.0,93965.0,0.46287712]
[1746530769954,1.10457303,93966.0,93965.0,0.27707712]
[1746530775955,0.93427303,93966.0,93965.0,0.27707712]
[1746530776154,0.93427303,93966.0,93965.0,0.38350112]
[1746530776358,0.3608,93966.0,93965.0,0.38350112]
[1746530776859,0.5736748,93966.0,93965.0,0.38350112]
[1746530777762,0.3608,93966.0,93965.0,0.38350112]
[1746530778265,0.5736748,93966.0,93965.0,0.38350112]
[1746530778463,0.3608,93966.0,93965.0,0.38350112]
[1746530778766,0.4895751,93978.0,93977.0,0.2128499]
[1746530779563,0.4895751,93978.0,93977.0,0.2779499]
[1746530779857,0.4363625,93978.0,93977.0,0.2779499]
[1746530780665,0.2660625,93978.0,93977.0,0.2779499]
[1746530783168,0.2660625,93978.0,93977.0,0.0651]
[1746530783366,0.2961625,93978.0,93977.0,0.0328]
[1746530783668,0.2961625,93978.0,93977.0,0.2456499]
[1746530785468,0.2961625,93978.0,93977.0,0.0328]
[1746530785662,0.2128748,93966.0,93945.0,0.0532302]
[1746530785871,0.2128748,93966.0,93965.0,0.21287712]
[1746530787667,0.2128748,93966.0,93965.0,0.27527712]
[1746530788869,0.2128748,93966.0,93965.0,0.38170112]
[1746530792176,0.2451748,93966.0,93965.0,0.38170112]
[1746530794065,0.2451748,93966.0,93965.0,0.27527712]
[1746530797372,0.2451748,93966.0,93965.0,0.24367712]
[1746530797965,0.2451748,93966.0,93965.0,2e-08]
[1746530798670,0.2451748,93966.0,93965.0,0.21287712]
[1746530802777,0.0323,93966.0,93965.0,0.21287712]
[1746530802977,0.2451748,93966.0,93965.0,0.21287712]
[1746530803177,0.2780748,93966.0,93965.0,0.21287712]
[1746530803878,0.0652,93966.0,93965.0,0.21287712]
[1746530804074,0.2780748,93966.0,93965.0,0.21287712]
[1746530804478,0.0652,93966.0,93965.0,0.21287712]
[1746530805070,0.0652,93966.0,93965.0,0.31930112]
[1746530805270,0.0652,93966.0,93965.0,0.35930112]
[1746530805873,0.0652,93966.0,93965.0,1.85930112]
[1746530806068,0.0652,93966.0,93965.0,1.81930112]
[1746530807080,0.2780748,93966.0,93965.0,1.81930112]
[1746530807788,0.2780748,93966.0,93965.0,1.71287712]
[1746530808982,0.2780748,93966.0,93965.0,0.21287712]
[1746530815800,0.2780748,93966.0,93965.0,0.28247712]
[1746530816291,0.2780748,93966.0,93965.0,1.78247712]
[1746530830800,0.3084748,93966.0,93965.0,1.78247712]
[1746530831500,0.3084748,93966.0,93965.0,0.28247712]
[1746530833716,0.3084748,93966.0,93965.0,1.78247712]
[1746530834514,0.3084748,93966.0,93965.0,1.56960002]
[1746530834707,0.3084748,93966.0,93965.0,1.78247712]
[1746530836307,0.3084748,93966.0,93965.0,1.56960002]
[1746530836507,0.3084748,93966.0,93965.0,1.78247712]
[1746530836810,0.3084748,93966.0,93965.0,1.56960002]
[1746530837411,0.3084748,93966.0,93965.0,2e-08]
[1746530856521,0.3084748,93966.0,93960.0,2e-08]
[1746530856522,0.2128861,93961.0,93960.0,2e-08]
[1746530856825,0.2129065,93952.0,93943.0,0.0304]
[1746530857019,0.5737065,93952.0,93944.0,1.5]
[1746530857724,0.6387065,93952.0,93944.0,1.5]
[1746530858116,0.6387065,93952.0,93945.0,0.2129223]
[1746530858418,0.0532285,93949.0,93943.0,0.45925804]
[1746530858620,0.5737247,93944.0,93943.0,0.40602634]
[1746530858823,0.5737247,93944.0,93943.0,0.19310044]
[1746530859014,0.5737247,93944.0,93943.0,1.69310044]
[1746530859518,0.6357247,93944.0,93943.0,0.16270044]
[1746530859727,0.6685247,93944.0,93943.0,0.37562734]
[1746530859918,0.6685247,93944.0,93943.0,0.40812734]
[1746530860316,0.3608,93944.0,93943.0,0.40812734]
[1746530860521,0.2129247,93944.0,93943.0,0.22690044]
[1746530860722,0.2129247,93944.0,93943.0,0.19520044]
[1746530861024,0.2129247,93944.0,93943.0,0.0325]
[1746530861219,0.3071247,93944.0,93943.0,0.0325]
[1746530861829,0.2129247,93944.0,93943.0,0.2454269]
[1746530862129,0.2129247,93944.0,93943.0,0.2781269]
[1746530866623,0.2459247,93944.0,93943.0,0.2781269]
[1746530873738,0.2775247,93944.0,93943.0,0.2781269]
[1746530874438,0.2775247,93944.0,93943.0,0.2454269]
[1746530877131,0.2775247,93944.0,93943.0,0.0325]
[1746530877336,0.2129269,93943.0,93942.0,0.00159672]
[1746530877724,0.2787269,93943.0,93942.0,0.00159672]
[1746530878851,0.28931131,93943.0,93942.0,0.00159672]
[1746530880841,0.2787269,93943.0,93942.0,0.00159672]
[1746530881134,0.29740251,93943.0,93942.0,0.00159672]
[1746530881339,0.28661401,93943.0,93942.0,0.00159672]
[1746530882141,0.0658,93943.0,93942.0,0.21452592]
[1746530882340,0.2787269,93943.0,93942.0,0.21452592]
[1746530882934,0.2787269,93943.0,93942.0,0.24742592]
[1746530883140,0.2787269,93943.0,93942.0,0.28032592]
[1746530886152,0.0658,93943.0,93942.0,0.28032592]
[1746530886545,0.2787269,93943.0,93942.0,0.28032592]
[1746530887552,0.0658,93943.0,93942.0,0.28032592]
[1746530888154,0.2787269,93943.0,93942.0,0.28032592]
[1746530889143,0.0658,93943.0,93942.0,0.28032592]
[1746530890759,0.0329,93943.0,93942.0,0.28032592]
[1746530890947,0.0329,93943.0,93942.0,0.31032592]
[1746530891846,0.0325,93945.0,93944.0,0.2129247]
[1746530892047,0.0325,93945.0,93944.0,0.2229247]
[1746530892452,0.0325,93945.0,93944.0,1.7229247]
[1746530898756,0.0318,93947.0,93946.0,0.2129201]
[1746530899060,0.0318,93947.0,93946.0,0.5837201]
[1746530899263,0.0316,93958.0,93952.0,0.0532263]
[1746530899462,0.0333,93955.0,93953.0,0.06772]
[1746530899661,0.0316,93954.0,93953.0,0.3443243]
[1746530900065,0.0316,93954.0,93953.0,0.3743243]
[1746530900669,0.0316,93954.0,93953.0,0.38519733]
[1746530901263,0.0316,93954.0,93953.0,0.35519733]
[1746530901654,0.0628,93954.0,93953.0,0.35519733]
[1746530902463,0.24342119,93954.0,93953.0,0.35519733]
[1746530903055,0.24342119,93954.0,93953.0,0.3443243]
[1746530903358,0.24342119,93954.0,93953.0,0.3110243]
[1746530904260,0.45632319,93954.0,93953.0,0.2806243]
[1746530907761,0.275702,93954.0,93953.0,0.2806243]
[1746530914871,0.275702,93954.0,93953.0,0.2129043]
[1746530917073,0.2661439,93950.0,93949.0,0.266133]
[1746530917470,0.3619439,93950.0,93949.0,0.266133]
[1746530917675,0.3087156,93950.0,93949.0,0.266133]
[1746530920672,0.3087156,93950.0,93949.0,0.2129048]
[1746530920981,0.2129269,93943.0,93942.0,0.21452402]
[1746530921179,0.2129269,93943.0,93942.0,0.00159672]
[1746530921880,0.6381269,93943.0,93942.0,0.00159672]
[1746530923385,0.6381269,93943.0,93942.0,0.21452592]
[1746530926086,0.6381269,93943.0,93942.0,0.00159672]
[1746530926272,0.8161269,93943.0,93942.0,0.00159672]
[1746530928183,0.6381269,93943.0,93942.0,0.00159672]
[1746530930492,0.6381269,93943.0,93942.0,0.21452592]
[1746530930677,0.6381269,93943.0,93942.0,0.00159672]
[1746530931685,0.6381269,93943.0,93942.0,0.21452592]
[1746530932883,0.6381269,93943.0,93942.0,0.00159672]
[1746530934904,0.6381269,93943.0,93942.0,0.21452592]
[1746530935204,0.6381269,93943.0,93942.0,0.03289672]
[1746530936097,0.6381269,93943.0,93942.0,0.24582592]
[1746530936692,0.6381269,93943.0,93942.0,0.03289672]
[1746530940693,0.6381269,93943.0,93942.0,0.00159672]
[1746530942809,0.8084269,93943.0,93942.0,0.00159672]
[1746530948316,0.8084269,93943.0,93942.0,0.21452592]
[1746530948317,0.6381269,93943.0,93942.0,0.21452592]
[1746530949215,0.6381269,93943.0,93942.0,0.24612592]
[1746530949515,0.5737269,93943.0,93942.0,0.24612592]
[1746530951913,0.5737269,93943.0,93942.0,1.74612592]